bitfinex-derivatives/quotes_BTCF0:USTF0_20250814
["timestamp","ask_amount","ask_price","bid_price","bid_amount"]
[1755198991439,0.9512457,118220.0,118210.0,2.3128]
[1755198991743,0.9512457,118220.0,118210.0,1.53072]
[1755198992037,0.9512457,118220.0,118210.0,2.3128]
[1755198992243,0.95124411,118220.0,118210.0,2.3128]
[1755198992435,0.53272655,118220.0,118210.0,2.3128]
[1755198992635,1.20994385,118220.0,118210.0,2.3128]
[1755198992837,1.20994385,118220.0,118210.0,2.3198]
[1755198993742,0.85232247,118220.0,118210.0,1.14988]
[1755198994238,0.85232247,118220.0,118210.0,1.14992]
[1755198994438,0.85232247,118220.0,118210.0,1.14984]
[1755198995045,1.20994385,118220.0,118210.0,1.14984]
[1755198995846,1.20994385,118220.0,118210.0,1.14976]
[1755198995847,1.14904793,118220.0,118210.0,1.14976]
[1755198997044,1.20994385,118220.0,118210.0,1.14976]
[1755198997642,1.20994385,118220.0,118210.0,1.14676]
[1755198997843,1.21194385,118220.0,118210.0,1.14676]
[1755198998542,1.21194385,118220.0,118210.0,1.14276]
[1755198998742,1.21494385,118220.0,118210.0,1.14276]
[1755199000746,1.15404793,118220.0,118210.0,1.14276]
[1755199003948,0.79642655,118220.0,118210.0,1.14276]
[1755199004150,1.15404793,118220.0,118210.0,1.14276]
[1755199005547,1.23006843,118220.0,118210.0,1.14276]
[1755199005742,1.21492119,118220.0,118210.0,1.14276]
[1755199005946,0.1718788,118190.0,118180.0,1.615576]
[1755199006140,0.87167407,118190.0,118180.0,2.397536]
[1755199006735,0.51405269,118190.0,118180.0,2.397536]
[1755199007249,0.51405269,118190.0,118180.0,2.398536]
[1755199007549,0.77275269,118190.0,118180.0,2.398536]
[1755199007750,0.69971269,118190.0,118180.0,2.398536]
[1755199008049,0.57083269,118190.0,118180.0,2.398536]
[1755199008247,0.57083269,118190.0,118180.0,2.314]
[1755199008442,0.77275269,118190.0,118180.0,2.3985753]
[1755199009247,0.77275269,118190.0,118180.0,2.314]
[1755199009652,0.77275269,118190.0,118180.0,2.31396]
[1755199009944,1.47866475,118190.0,118160.0,0.3608]
[1755199010147,1.47866475,118190.0,118120.0,8e-05]
[1755199010148,0.1313734,118140.0,118120.0,8e-05]
[1755199010349,1.22850867,118140.0,118130.0,0.7821]
[1755199010840,0.87088729,118140.0,118130.0,0.7821]
[1755199011043,0.82411729,118140.0,118130.0,0.7821]
[1755199011242,0.82411729,118140.0,118130.0,0.8675109]
[1755199011447,0.82411729,118140.0,118130.0,1.22513228]
[1755199011649,0.82411729,118140.0,118130.0,0.8675109]
[1755199011952,1.08281729,118140.0,118130.0,0.8675109]
[1755199012450,1.08281729,118140.0,118130.0,0.8705109]
[1755199012848,1.08281729,118140.0,118130.0,0.8675109]
[1755199013152,1.12958729,118140.0,118130.0,0.8675109]
[1755199013555,1.12958729,118140.0,118130.0,0.7821]
[1755199013745,1.68912867,118140.0,118130.0,0.78222]
[1755199014147,1.68912867,118140.0,118130.0,0.8668309]
[1755199014148,1.48720867,118140.0,118130.0,0.8668309]
[1755199014353,1.12958729,118140.0,118130.0,0.8668309]
[1755199014744,1.08281729,118140.0,118130.0,0.8668309]
[1755199014946,0.72201729,118140.0,118130.0,1.59454828]
[1755199015149,0.36121759,118140.0,118130.0,1.2369269]
[1755199015352,0.72201759,118140.0,118130.0,1.59454828]
[1755199015649,0.63741389,118140.0,118130.0,1.2369269]
[1755199015853,0.2587,118140.0,118130.0,1.59454828]
[1755199017350,0.3433037,118140.0,118130.0,1.59454828]
[1755199019151,0.7041037,118140.0,118130.0,0.8679909]
[1755199019451,1.27648508,118140.0,118130.0,0.0847109]
[1755199019656,1.27648508,118140.0,118130.0,0.8684309]
[1755199019657,1.49112508,118140.0,118130.0,0.8684309]
[1755199020358,1.51015673,118140.0,118130.0,0.8683909]
[1755199020546,1.51095673,118140.0,118130.0,0.0001]
[1755199020854,1.51095673,118140.0,118130.0,0.78366]
[1755199021559,1.52966859,118140.0,118130.0,0.78366]
[1755199022163,1.17204721,118140.0,118130.0,0.78366]
[1755199022359,1.52966859,118140.0,118130.0,0.78366]
[1755199023054,1.52966859,118140.0,118120.0,8e-05]
[1755199023257,1.23243228,118130.0,118120.0,8e-05]
[1755199023455,1.25114414,118130.0,118120.0,0.78668]
[1755199023758,1.2600117,118130.0,118120.0,0.8712981]
[1755199023957,1.25114414,118130.0,118120.0,0.78668]
[1755199024563,1.25114414,118130.0,118120.0,0.8712981]
[1755199024761,1.25114414,118130.0,118120.0,0.78668]
[1755199025261,1.25114414,118130.0,118120.0,0.8712981]
[1755199025564,1.25114414,118130.0,118120.0,0.8722981]
[1755199025752,0.82038276,118130.0,118120.0,0.8722981]
[1755199025956,1.22140003,118130.0,118120.0,0.8722981]
[1755199026354,1.57902141,118130.0,118120.0,0.8742981]
[1755199026864,1.22140003,118130.0,118120.0,0.8742981]
[1755199028975,1.57902141,118130.0,118120.0,0.8742981]
[1755199029270,1.22140003,118130.0,118120.0,0.8742981]
[1755199029965,1.22140003,118130.0,118120.0,0.8722981]
[1755199031474,1.22140003,118130.0,118120.0,0.8712981]
[1755199032774,1.22140003,118130.0,118120.0,0.88822252]
[1755199036272,0.75510913,118130.0,118120.0,1.2466439]
[1755199036473,0.75510913,118130.0,118120.0,1.18697728]
[1755199036474,0.63821186,118130.0,118120.0,1.18697728]
[1755199036784,0.27741186,118130.0,118120.0,2.33529728]
[1755199037076,0.27741186,118130.0,118120.0,1.9776759]
[1755199037486,0.27741186,118130.0,118120.0,2.33529728]
[1755199040473,0.27741186,118130.0,118120.0,1.9768759]
[1755199040675,0.27741186,118130.0,118120.0,1.8075639]
[1755199040875,0.27741186,118130.0,118120.0,1.9768759]
[1755199042480,0.27741186,118130.0,118120.0,1.61925452]
[1755199042682,0.27741186,118130.0,118120.0,1.97737323]
[1755199044177,0.32537186,118130.0,118120.0,1.77737323]
[1755199046185,0.32537186,118130.0,118120.0,1.7767563]
[1755199049488,0.32537186,118130.0,118120.0,2.13437768]
[1755199050280,0.32537186,118130.0,118120.0,1.7767563]
[1755199053082,0.27741186,118130.0,118120.0,1.7767563]
[1755199053293,0.21497,118150.0,118140.0,0.10196276]
[1755199053493,0.4982767,118150.0,118140.0,1.24694414]
[1755199054193,0.47455326,118150.0,118140.0,1.24694414]
[1755199054585,0.55914996,118150.0,118140.0,1.24694414]
[1755199054790,0.55914996,118150.0,118140.0,0.88932276]
[1755199055086,0.5002767,118150.0,118140.0,1.24694414]
[1755199055784,0.41768,118150.0,118140.0,1.24694414]
[1755199061186,0.5022767,118150.0,118140.0,1.24694414]
[1755199061498,0.41768,118150.0,118140.0,1.24694414]
[1755199064800,0.004,118150.0,118140.0,1.24694414]
[1755199065095,0.05196,118150.0,118140.0,1.24694414]
[1755199065296,0.0707119,118150.0,118140.0,0.88932276]
[1755199065595,0.0707119,118150.0,118140.0,1.24694414]
[1755199067099,0.0707119,118150.0,118140.0,1.60774414]
[1755199067501,0.0227519,118150.0,118140.0,1.60774414]
[1755199067691,0.83535326,118170.0,118160.0,0.0845895]
[1755199067896,0.83535326,118170.0,118160.0,1.22849088]
[1755199068803,0.83835326,118170.0,118160.0,1.22849088]
[1755199069296,0.84035326,118170.0,118160.0,1.22849088]
[1755199071895,0.84035326,118170.0,118160.0,1.23390893]
[1755199072805,0.77948,118170.0,118160.0,1.23390893]
[1755199073102,0.41868,118170.0,118160.0,1.23390893]
[1755199075512,0.8640624,118170.0,118160.0,1.23390893]
[1755199075806,0.8640624,118170.0,118160.0,0.87552755]
[1755199075807,0.92573566,118170.0,118160.0,0.87552755]
[1755199076304,0.92493566,118170.0,118160.0,0.87552755]
[1755199076502,0.84035326,118170.0,118160.0,0.87552755]
[1755199076705,0.92493566,118170.0,118160.0,0.87552755]
[1755199078006,0.99371058,118170.0,118160.0,0.87552755]
[1755199078207,0.90912818,118170.0,118160.0,0.87552755]
[1755199078408,0.99371058,118170.0,118160.0,0.87552755]
[1755199078601,0.99371058,118170.0,118160.0,1.23314893]
[1755199079907,1.01238674,118170.0,118160.0,1.23314893]
[1755199080497,1.01238674,118170.0,118160.0,0.87552755]
[1755199080694,1.01238674,118170.0,118160.0,0.44221088]
[1755199080900,1.01238674,118170.0,118160.0,0.8698295]
[1755199081304,1.01238674,118170.0,118160.0,0.0845895]
[1755199081502,1.37080812,118170.0,118160.0,0.8699095]
[1755199081706,0.5007895,118160.0,118150.0,0.18660852]
[1755199081907,0.88026566,118160.0,118150.0,0.97184852]
[1755199082306,1.13896566,118160.0,118150.0,0.97184852]
[1755199082509,1.05437616,118160.0,118150.0,1.3294699]
[1755199082910,1.05537616,118160.0,118150.0,1.3294699]
[1755199083112,1.05637616,118160.0,118150.0,1.3294699]
[1755199083708,1.05637616,118160.0,118150.0,1.33470825]
[1755199084306,0.68534616,118160.0,118150.0,1.33470825]
[1755199084505,0.32454616,118160.0,118150.0,1.69630825]
[1755199084707,0.17215676,118160.0,118150.0,2.22320163]
[1755199085108,0.12301086,118160.0,118150.0,2.22320163]
[1755199085302,0.04517,118180.0,118170.0,0.0845824]
[1755199085602,0.04517,118180.0,118170.0,1.58896378]
[1755199085808,0.04517,118180.0,118170.0,1.58976378]
[1755199086004,0.71125758,118190.0,118180.0,0.0845752]
[1755199086005,0.27387326,118190.0,118180.0,0.0845752]
[1755199086313,0.04517,118200.0,118180.0,2.16068387]
[1755199086512,0.04517,118200.0,118190.0,1.22822948]
[1755199087212,0.04517,118200.0,118190.0,1.22522948]
[1755199087418,0.17988,118200.0,118190.0,1.22522948]
[1755199087619,0.17988,118200.0,118190.0,1.22322948]
[1755199088312,0.18188,118200.0,118190.0,1.22322948]
[1755199089019,0.27268,118200.0,118190.0,1.22322948]
[1755199089518,0.4192,118200.0,118190.0,1.22322948]
[1755199090805,0.4192,118200.0,118190.0,0.8656081]
[1755199091011,0.4192,118200.0,118190.0,1.22322948]
[1755199091312,0.78,118200.0,118190.0,1.22322948]
[1755199093619,0.78,118200.0,118190.0,0.8656081]
[1755199093918,0.78,118200.0,118190.0,1.22322948]
[1755199096221,0.5768,118200.0,118190.0,1.22322948]
[1755199096414,0.04817,118200.0,118190.0,1.58402948]
[1755199096621,0.003,118200.0,118190.0,1.94165086]
[1755199096821,0.04817,118200.0,118190.0,1.58402948]
[1755199097021,0.06627704,118200.0,118190.0,1.58402948]
[1755199097222,0.10895801,118200.0,118190.0,1.58402948]
[1755199097422,0.12706505,118200.0,118190.0,1.58402948]
[1755199098327,0.06627704,118200.0,118190.0,1.58402948]
[1755199098921,0.43730704,118200.0,118190.0,1.22322948]
[1755199099224,0.51332754,118200.0,118190.0,1.22322948]
[1755199099417,0.51332754,118200.0,118190.0,1.22362948]
[1755199101418,0.51332754,118200.0,118190.0,1.58442948]
[1755199101918,0.51332754,118200.0,118190.0,1.22362948]
[1755199102714,0.51332754,118200.0,118190.0,1.58442948]
[1755199103922,0.43730704,118200.0,118190.0,1.58442948]
[1755199104121,0.43730704,118200.0,118190.0,1.60173314]
[1755199107339,0.43730704,118200.0,118190.0,1.60189413]
[1755199107635,0.43730704,118200.0,118190.0,1.60081413]
[1755199108934,0.43730704,118200.0,118190.0,1.24319275]
[1755199109135,0.23410704,118200.0,118190.0,1.24319275]
[1755199109336,0.42836704,118200.0,118190.0,0.45783275]
[1755199109536,0.42836704,118200.0,118190.0,1.60093413]
[1755199110736,0.78916704,118200.0,118190.0,1.24061413]
[1755199111830,0.42836704,118200.0,118190.0,1.24061413]
[1755199114139,0.55066704,118200.0,118190.0,1.24061413]
[1755199115539,0.55066704,118200.0,118190.0,0.88299275]
[1755199115843,0.55066704,118200.0,118190.0,1.24061413]
[1755199117541,0.55066704,118200.0,118190.0,1.60141413]
[1755199118943,0.54866704,118200.0,118190.0,1.60141413]
[1755199119845,0.54766704,118200.0,118190.0,1.60141413]
[1755199120143,0.54766704,118200.0,118190.0,1.60241413]
[1755199123442,0.69193,118220.0,118210.0,0.0845546]
[1755199123642,0.7022,118220.0,118210.0,1.24526269]
[1755199123845,0.71485,118220.0,118210.0,1.24526269]
[1755199124845,0.35405,118220.0,118210.0,1.24526269]
[1755199125040,0.35605,118220.0,118210.0,1.24526269]
[1755199125246,0.35605,118220.0,118210.0,1.60928115]
[1755199125649,0.35405,118220.0,118210.0,1.60928115]
[1755199125849,0.35505,118220.0,118210.0,1.60928115]
[1755199126045,0.35505,118220.0,118210.0,2.77944115]
[1755199126445,0.35605,118220.0,118210.0,2.77944115]
[1755199126745,0.1864,118220.0,118210.0,2.77944115]
[1755199126947,0.1374,118220.0,118210.0,2.77944115]
[1755199127244,0.1854,118220.0,118210.0,2.77944115]
[1755199128150,0.30915,118220.0,118210.0,2.78144115]
[1755199128342,0.1854,118220.0,118210.0,2.78144115]
[1755199128549,0.1364,118220.0,118210.0,2.78144115]
[1755199128750,0.1844,118220.0,118210.0,2.78244115]
[1755199133851,0.1844,118220.0,118210.0,2.78156115]
[1755199135554,0.20224003,118220.0,118210.0,2.78156115]
[1755199142265,0.20049003,118220.0,118210.0,2.78156115]
[1755199142659,0.49586003,118220.0,118210.0,1.63901977]
[1755199142859,0.56816003,118220.0,118210.0,2.77992115]
[1755199143355,0.49586003,118220.0,118210.0,2.77992115]
[1755199143564,0.20049003,118220.0,118210.0,2.77992115]
[1755199145169,0.15424003,118220.0,118210.0,2.77992115]
[1755199145467,0.20049003,118220.0,118210.0,2.77992115]
[1755199148968,0.49586003,118220.0,118210.0,2.77972115]
[1755199149163,0.56816003,118220.0,118210.0,2.41892115]
[1755199152866,0.56816003,118220.0,118210.0,1.63584115]
[1755199153065,0.56816003,118220.0,118210.0,2.41892115]
[1755199156372,0.56816003,118220.0,118210.0,2.77972115]
[1755199156778,0.15424003,118220.0,118210.0,2.77972115]
[1755199156978,0.0001,118230.0,118210.0,3.03338025]
[1755199156979,0.04635,118230.0,118210.0,3.03338025]
[1755199157280,0.04625,118240.0,118230.0,0.0845404]
[1755199157576,0.40705,118250.0,118240.0,0.0845333]
[1755199157777,0.70242,118250.0,118240.0,0.79977606]
[1755199157974,0.77472,118250.0,118240.0,0.79977606]
[1755199158175,0.77472,118250.0,118240.0,0.44215468]
[1755199158780,0.77572,118250.0,118240.0,0.44215468]
[1755199158971,0.41492,118250.0,118240.0,0.44215468]
[1755199159375,0.001,118250.0,118240.0,0.85357606]
[1755199159577,0.78923419,118270.0,118260.0,0.114859]
[1755199159783,0.78923419,118270.0,118260.0,1.25352038]
[1755199160177,0.72847,118270.0,118260.0,2.42336038]
[1755199161278,0.72947,118270.0,118260.0,2.44682038]
[1755199161472,0.77572,118270.0,118260.0,2.42336038]
[1755199161795,0.77572,118270.0,118260.0,2.42770438]
[1755199163285,0.77672,118270.0,118260.0,2.42770438]
[1755199168987,0.79440085,118270.0,118260.0,2.42770438]
[1755199169488,0.79440085,118270.0,118260.0,2.45116438]
[1755199170174,0.79440085,118270.0,118260.0,2.42770438]
[1755199170778,0.79440085,118270.0,118260.0,2.39740438]
[1755199170779,0.87891265,118270.0,118260.0,2.39740438]
[1755199170981,0.79440085,118270.0,118260.0,2.39740438]
[1755199171175,0.79440085,118270.0,118260.0,2.039783]
[1755199171371,0.79440085,118270.0,118260.0,2.39740438]
[1755199174482,0.79440085,118270.0,118260.0,2.42086438]
[1755199174885,0.42673085,118270.0,118260.0,2.42086438]
[1755199175188,0.71970085,118270.0,118260.0,2.42086438]
[1755199175389,0.78905085,118270.0,118260.0,2.42086438]
[1755199175984,0.77137,118270.0,118260.0,2.42086438]
[1755199176186,0.78893993,118270.0,118260.0,2.42086438]
[1755199180292,0.78893993,118270.0,118260.0,1.63778438]
[1755199180494,0.78893993,118270.0,118260.0,2.42098438]
[1755199180894,0.78893993,118270.0,118260.0,1.63778438]
[1755199181085,0.78893993,118270.0,118260.0,2.42086438]
[1755199181892,0.78893993,118270.0,118260.0,1.63778438]
[1755199182296,0.78893993,118270.0,118260.0,2.42202438]
[1755199182997,0.78793993,118270.0,118260.0,2.42202438]
[1755199184898,0.78693993,118270.0,118260.0,2.42202438]
[1755199186699,0.01756993,118270.0,118260.0,2.42202438]
[1755199186898,0.3608,118290.0,118280.0,0.1154056]
[1755199187102,0.40832,118290.0,118280.0,1.63798836]
[1755199187798,0.40832,118290.0,118280.0,1.28036698]
[1755199188193,0.41032,118290.0,118280.0,1.28036698]
[1755199188399,0.41232,118290.0,118280.0,1.28036698]
[1755199188697,0.59587327,118290.0,118280.0,1.28036698]
[1755199189002,0.47099327,118290.0,118280.0,1.28036698]
[1755199190501,0.47099327,118290.0,118280.0,1.63798836]
[1755199190799,0.47099327,118290.0,118280.0,1.28036698]
[1755199191500,0.42347327,118290.0,118280.0,1.28036698]
[1755199192001,0.47099327,118290.0,118280.0,1.63798836]
[1755199194502,0.11019327,118290.0,118280.0,1.63798836]
[1755199195802,0.04952,118290.0,118280.0,1.63798836]
[1755199196397,0.04952,118290.0,118280.0,1.65720197]
[1755199198201,0.002,118290.0,118280.0,1.65720197]
[1755199198905,0.01953287,118290.0,118280.0,1.65720197]
[1755199199804,0.01953287,118290.0,118280.0,1.65677971]
[1755199200201,0.06776287,118290.0,118280.0,1.65677971]
[1755199200407,0.01953287,118290.0,118280.0,1.65677971]
[1755199201104,0.06776287,118290.0,118280.0,1.65677971]
[1755199201702,0.06776287,118290.0,118280.0,2.01757971]
[1755199202107,0.01953287,118290.0,118280.0,2.01757971]
[1755199202708,0.06776287,118290.0,118280.0,2.01757971]
[1755199206513,0.23240287,118290.0,118280.0,1.65875833]
[1755199206705,0.43456287,118290.0,118280.0,1.65875833]
[1755199207016,0.43456287,118290.0,118280.0,0.87607833]
[1755199207202,0.43456287,118290.0,118280.0,2.01637971]
[1755199207508,0.43356287,118290.0,118280.0,2.01637971]
[1755199212907,0.43356287,118290.0,118280.0,0.13419695]
[1755199213102,0.43356287,118290.0,118280.0,1.27445833]
[1755199213303,0.43356287,118290.0,118280.0,1.65553971]
[1755199213916,0.15108287,118290.0,118280.0,1.65553971]
[1755199214511,0.06576287,118290.0,118280.0,1.65553971]
[1755199214814,0.01753287,118290.0,118280.0,1.65553971]
[1755199215014,0.06576287,118290.0,118280.0,1.80108611]
[1755199215714,0.06576287,118290.0,118280.0,1.82454611]
[1755199216017,0.06576287,118290.0,118280.0,1.82554611]
[1755199217817,0.06576287,118290.0,118280.0,1.82654611]
[1755199218019,0.06576287,118290.0,118280.0,2.99582611]
[1755199219418,0.06576287,118290.0,118280.0,2.9959857]
[1755199220213,0.06576287,118290.0,118280.0,3.3567857]
[1755199220420,0.01753287,118290.0,118280.0,3.3567857]
[1755199223019,0.01753287,118290.0,118280.0,3.3569879]
[1755199224021,0.01753287,118290.0,118280.0,2.64174514]
[1755199224325,0.01753287,118290.0,118280.0,3.3569879]
[1755199226404,0.04993,118300.0,118280.0,3.4414935]
[1755199226607,0.0174551,118300.0,118290.0,0.85963968]
[1755199226805,0.0673851,118300.0,118290.0,0.85963968]
[1755199227706,0.0174551,118300.0,118290.0,0.85963968]
[1755199229514,0.57273065,118320.0,118310.0,0.084484]
[1755199229728,0.79617325,118320.0,118310.0,1.30274403]
[1755199229911,0.79617325,118320.0,118310.0,1.27928403]
[1755199230112,0.79617325,118320.0,118310.0,1.30274403]
[1755199230315,0.79617325,118320.0,118310.0,1.30782448]
[1755199230824,0.44553325,118320.0,118310.0,1.30782448]
[1755199231128,0.79817325,118320.0,118310.0,1.30782448]
[1755199231421,0.43737325,118320.0,118310.0,1.30782448]
[1755199232025,0.43937325,118320.0,118310.0,0.9502031]
[1755199232225,0.43937325,118320.0,118310.0,1.30782448]
[1755199238322,0.43937325,118320.0,118310.0,1.30826448]
[1755199239019,0.4220126,118320.0,118310.0,1.30826448]
[1755199239628,0.06694881,118340.0,118330.0,0.1177297]
[1755199239930,0.06694881,118340.0,118330.0,2.45873108]
[1755199240125,0.06694881,118340.0,118330.0,2.1011097]
[1755199240328,0.31433881,118340.0,118330.0,2.45873108]
[1755199240528,0.41758881,118340.0,118330.0,2.45873108]
[1755199241032,0.01701881,118340.0,118330.0,2.45873108]
[1755199241532,0.06694881,118340.0,118330.0,2.45873108]
[1755199243734,0.18912881,118340.0,118330.0,2.45873108]
[1755199244036,0.25066,118340.0,118330.0,2.45873108]
[1755199244228,0.29732,118340.0,118330.0,2.45873108]
[1755199244529,0.29732,118340.0,118330.0,2.47774901]
[1755199245031,0.29732,118340.0,118330.0,2.47874901]
[1755199245341,0.29732,118340.0,118330.0,2.83954901]
[1755199245632,0.12848,118340.0,118330.0,2.83954901]
[1755199246132,0.43850187,118360.0,118340.0,0.0844565]
[1755199246325,0.83907187,118360.0,118350.0,1.18504138]
[1755199246527,0.83907187,118360.0,118350.0,1.26949688]
[1755199246834,0.92352017,118360.0,118350.0,1.26949688]
[1755199247135,0.83907187,118360.0,118350.0,1.26949688]
[1755199247435,0.7783986,118360.0,118350.0,1.26949688]
[1755199247935,0.7793986,118360.0,118350.0,1.26949688]
[1755199248630,0.7803986,118360.0,118350.0,1.26949688]
[1755199248833,0.3628,118360.0,118350.0,1.26949688]
[1755199249038,0.76337,118360.0,118350.0,0.95419253]
[1755199249332,0.64119,118360.0,118350.0,1.31181391]
[1755199249538,0.76337,118360.0,118350.0,1.31181391]
[1755199251031,0.40257,118360.0,118350.0,1.31181391]
[1755199251533,0.41975884,118360.0,118350.0,1.31181391]
[1755199253741,0.41975884,118360.0,118350.0,1.31171394]
[1755199254136,0.06911884,118360.0,118350.0,1.66933532]
[1755199255335,0.01918884,118360.0,118350.0,1.66933532]
[1755199257245,0.01918884,118360.0,118350.0,1.66970414]
[1755199257742,0.01818884,118360.0,118350.0,1.66970414]
[1755199257944,0.01718884,118360.0,118350.0,1.66970414]
[1755199258334,0.01718884,118360.0,118350.0,2.03050414]
[1755199259146,0.75988,118380.0,118370.0,0.1379414]
[1755199259439,0.75988,118380.0,118370.0,1.3083561]
[1755199260441,0.76188,118380.0,118370.0,1.3083561]
[1755199260644,0.76188,118380.0,118370.0,1.31352482]
[1755199261044,0.76388,118380.0,118370.0,1.31352482]
[1755199261941,0.76388,118380.0,118370.0,0.49598482]
[1755199262137,0.8483143,118380.0,118370.0,0.46594482]
[1755199262332,0.8491143,118380.0,118370.0,0.10315472]
[1755199262540,0.8491143,118380.0,118370.0,0.89791472]
[1755199262934,0.8483143,118380.0,118370.0,0.89791472]
[1755199263134,0.8483143,118380.0,118370.0,1.2555361]
[1755199263334,0.76388,118380.0,118370.0,1.2555361]
[1755199264043,1.02258,118380.0,118370.0,1.2789961]
[1755199264633,1.02258,118380.0,118370.0,1.3090361]
[1755199264838,1.02258,118380.0,118370.0,1.31422416]
[1755199265433,1.02258,118380.0,118370.0,0.93314278]
[1755199265637,1.02258,118380.0,118370.0,1.29076416]
[1755199267946,1.02258,118380.0,118370.0,1.31422416]
[1755199268348,1.02258,118380.0,118370.0,1.31742416]
[1755199268744,0.82815,118380.0,118370.0,1.31742416]
[1755199268950,0.66178,118380.0,118370.0,1.31742416]
[1755199271144,0.67882029,118380.0,118370.0,1.31742416]
[1755199273140,0.67882029,118380.0,118370.0,0.95980278]
[1755199273350,0.67882029,118380.0,118370.0,1.31742416]
[1755199274550,0.48439029,118380.0,118370.0,1.31742416]
[1755199274752,0.67882029,118380.0,118370.0,1.31742416]
[1755199276854,0.67882029,118380.0,118370.0,1.67822416]
[1755199277757,0.27984029,118380.0,118370.0,1.67822416]
[1755199277940,0.32852029,118380.0,118370.0,1.67822416]
[1755199278144,0.67882029,118380.0,118370.0,1.67822416]
[1755199279649,0.61027029,118380.0,118370.0,1.67822416]
[1755199280254,0.67882029,118380.0,118370.0,1.32060278]
[1755199280556,0.67882029,118380.0,118370.0,1.67822416]
[1755199285559,0.67882029,118380.0,118370.0,2.84662416]
[1755199285861,0.27984029,118380.0,118370.0,2.84662416]
[1755199286054,0.32499029,118380.0,118370.0,2.48900278]
[1755199286362,0.32499029,118380.0,118370.0,2.84662416]
[1755199287056,0.32399029,118380.0,118370.0,2.84662416]
[1755199287854,0.31066,118390.0,118370.0,3.09994396]
[1755199288064,0.34149,118390.0,118380.0,0.88227588]
[1755199288360,0.49791327,118410.0,118390.0,0.2536312]
[1755199288569,0.2686,118410.0,118400.0,1.80628296]
[1755199288764,0.2686,118410.0,118400.0,1.87343858]
[1755199289060,0.2686,118410.0,118400.0,1.5138172]
[1755199289254,0.2686,118410.0,118400.0,1.5118172]
[1755199289860,0.31575,118410.0,118400.0,1.5118172]
[1755199290360,0.38864,118410.0,118400.0,1.5118172]
[1755199291759,0.38864,118410.0,118400.0,1.5128172]
[1755199291953,0.74944,118410.0,118400.0,0.63966158]
[1755199292160,0.74944,118410.0,118400.0,0.59165158]
[1755199292359,0.75024,118410.0,118400.0,0.2340302]
[1755199292571,0.75024,118410.0,118400.0,1.0391502]
[1755199292761,0.74944,118410.0,118400.0,1.39677158]
[1755199292963,0.38864,118410.0,118400.0,1.44478158]
[1755199294561,0.38864,118410.0,118400.0,0.63966158]
[1755199294767,0.74944,118410.0,118400.0,1.44446158]
[1755199295073,0.76434,118410.0,118400.0,1.44546158]
[1755199295774,0.76434,118410.0,118400.0,1.0878402]
[1755199296071,0.76434,118410.0,118400.0,1.44546158]
[1755199296269,0.76434,118410.0,118400.0,1.0878402]
[1755199296458,0.76434,118410.0,118400.0,1.44546158]
[1755199297469,0.76434,118410.0,118400.0,1.0878402]
[1755199297657,0.76434,118410.0,118400.0,1.44546158]
[1755199298670,0.76434,118410.0,118400.0,1.80308296]
[1755199298868,0.0169,118410.0,118400.0,1.80308296]
[1755199299571,0.17732,118410.0,118400.0,1.80308296]
[1755199299773,0.07757327,118410.0,118400.0,1.80308296]
[1755199300069,0.09402821,118410.0,118400.0,1.80308296]
[1755199300864,0.33088821,118410.0,118400.0,1.80308296]
[1755199301062,0.33088821,118410.0,118400.0,1.44546158]
[1755199301464,0.27021494,118410.0,118400.0,1.0878402]
[1755199301666,0.27021494,118410.0,118400.0,1.44546158]
[1755199301861,0.27021494,118410.0,118400.0,1.0878402]
[1755199302171,0.27021494,118410.0,118400.0,1.80308296]
[1755199303466,0.27021494,118410.0,118400.0,1.44546158]
[1755199304968,0.03335494,118410.0,118400.0,1.44546158]
[1755199305274,0.03335494,118410.0,118400.0,2.16388296]
[1755199307870,0.03335494,118410.0,118400.0,1.4486402]
[1755199308162,0.03335494,118410.0,118400.0,2.16388296]
[1755199308372,0.03335494,118410.0,118400.0,2.1824098]
[1755199311884,0.03335494,118410.0,118400.0,2.18306061]
[1755199312380,0.03335494,118410.0,118400.0,1.37826061]
[1755199312578,0.41999494,118410.0,118400.0,1.02063923]
[1755199312775,0.41999494,118410.0,118400.0,1.82958565]
[1755199313082,0.41999494,118410.0,118400.0,1.47196427]
[1755199313271,0.41999494,118410.0,118400.0,1.82958565]
[1755199313473,0.03335494,118410.0,118400.0,2.18708703]
[1755199313676,0.03335494,118410.0,118400.0,1.82946565]
[1755199313677,0.41999494,118410.0,118400.0,1.82946565]
[1755199314275,0.41999494,118410.0,118400.0,1.46866565]
[1755199314772,0.41999494,118410.0,118400.0,1.46869785]
[1755199315077,0.41999494,118410.0,118400.0,1.82631923]
[1755199315683,0.41999494,118410.0,118400.0,1.11107647]
[1755199315980,0.41999494,118410.0,118400.0,0.65941785]
[1755199316274,0.41999494,118410.0,118400.0,1.46785785]
[1755199316482,0.41999494,118410.0,118400.0,1.468129]
[1755199316876,0.41999494,118410.0,118400.0,1.82575038]
[1755199317581,0.41999494,118410.0,118400.0,1.468129]
[1755199317983,0.48066821,118410.0,118400.0,0.30206762]
[1755199318275,0.48066821,118410.0,118400.0,1.468009]
[1755199318479,0.48066821,118410.0,118400.0,1.46810459]
[1755199320388,0.78079494,118410.0,118400.0,0.25415321]
[1755199320577,1.22362942,118410.0,118400.0,0.0864202]
[1755199320772,1.24096237,118410.0,118400.0,0.002]
[1755199320977,1.24096237,118410.0,118400.0,0.0864202]
[1755199321178,1.24096237,118410.0,118400.0,0.8949002]
[1755199321377,0.88334099,118410.0,118400.0,0.8949002]
[1755199322982,1.25225299,118410.0,118400.0,0.0864202]
[1755199323181,0.96670989,118410.0,118400.0,1.16558138]
[1755199323387,1.05112279,118410.0,118400.0,1.25000158]
[1755199323686,1.05112279,118410.0,118400.0,1.32296158]
[1755199323883,0.49403789,118410.0,118400.0,1.32296158]
[1755199324192,0.80691789,118410.0,118400.0,1.44932158]
[1755199325083,0.41148789,118410.0,118400.0,1.44932158]
[1755199325386,0.09581789,118410.0,118400.0,1.44932158]
[1755199325779,0.09581789,118410.0,118400.0,1.80694296]
[1755199326087,0.02214189,118410.0,118400.0,0.99930296]
[1755199326282,0.02214189,118410.0,118400.0,1.80818296]
[1755199326484,0.26394189,118410.0,118400.0,1.80818296]
[1755199327683,0.26394189,118410.0,118400.0,2.16898296]
[1755199327987,0.26394189,118410.0,118400.0,2.16818296]
[1755199328388,0.26394189,118410.0,118400.0,2.16898296]
[1755199329589,0.26394189,118410.0,118400.0,2.13839296]
[1755199329783,0.26394189,118410.0,118400.0,2.13759296]
[1755199331388,0.30907189,118410.0,118400.0,1.77679296]
[1755199331586,0.58467189,118410.0,118400.0,1.77679296]
[1755199333080,0.55221189,118410.0,118400.0,1.77679296]
[1755199333275,0.39162189,118410.0,118400.0,1.77679296]
[1755199333486,0.26394189,118410.0,118400.0,1.77679296]
[1755199335086,0.24660894,118410.0,118400.0,1.77679296]
[1755199335389,0.29173894,118410.0,118400.0,1.77679296]